fUSD/lending_fUSD_20250307
["ID","MTS","AMOUNT","RATE_DAILY","PERIOD"]
[355592483,1741338645748,-500.0,9.582e-05,2]
[355592484,1741338645757,-500.0,9.582e-05,2]
[355592485,1741338645767,-769.96,9.582e-05,2]
[355592486,1741338645776,-500.0,9.582e-05,2]
[355592487,1741338645785,-500.0,9.582e-05,2]
[355592488,1741338645794,-5017.17,9.582e-05,2]
[355592489,1741338645804,-500.0,9.582e-05,2]
[355592490,1741338645813,-5074.4,9.582e-05,2]
[355592491,1741338645822,-500.0,9.582e-05,2]
[355592492,1741338645831,-549.01884925,9.582e-05,2]
[355592493,1741338645843,-500.0,9.582e-05,2]
[355592494,1741338645852,-500.0,9.582e-05,2]
[355592495,1741338645863,-189.71195051,9.582e-05,2]
[355592496,1741338645872,-500.0,9.582e-05,2]
[355592499,1741338645884,-7757.77,9.582e-05,2]
[355592501,1741338645893,-500.04,9.582e-05,2]
[355592503,1741338645903,-569.68,9.582e-05,2]
[355592505,1741338645912,-3723.32,9.582e-05,2]
[355592507,1741338645921,-3292.47,9.582e-05,2]
[355592509,1741338645931,-1255.95,9.582e-05,2]
[355592511,1741338645941,-500.0,9.582e-05,2]
[355592513,1741338645951,-500.0,9.582e-05,2]
[355592515,1741338645961,-1495.18,9.582e-05,2]
[355592517,1741338645971,-500.0,9.582e-05,2]
[355592519,1741338645980,-500.0,9.582e-05,2]
[355592521,1741338645989,-3142.95,9.582e-05,2]
[355592523,1741338645998,-500.0,9.582e-05,2]
[355592525,1741338646007,-543.96,9.582e-05,2]
[355592527,1741338646016,-7165.83,9.582e-05,2]
[355592529,1741338646025,-500.0,9.582e-05,2]
[355592531,1741338646034,-500.0,9.582e-05,2]
[355592533,1741338646043,-744.3,9.582e-05,2]
[355592535,1741338646053,-500.0,9.582e-05,2]
[355592537,1741338646063,-14675.92,9.582e-05,2]
[355592539,1741338646073,-500.0,9.582e-05,2]
[355592541,1741338646082,-3464.24,9.582e-05,2]
[355592543,1741338646091,-500.0,9.582e-05,2]
[355592545,1741338646100,-500.0,9.582e-05,2]
[355592547,1741338646109,-500.0,9.582e-05,2]
[355592549,1741338646118,-1835.43,9.582e-05,2]
[355592551,1741338646127,-500.0,9.582e-05,2]
[355592553,1741338646137,-2612.02,9.582e-05,2]
[355592555,1741338646146,-403.11318872,9.582e-05,2]
[355592557,1741338646155,-500.0,9.582e-05,2]
[355592559,1741338646164,-500.0,9.582e-05,2]
[355592561,1741338646174,-1001.45,9.582e-05,2]
[355592563,1741338646183,-1673.78,9.582e-05,2]
[355592565,1741338646192,-500.0,9.582e-05,2]
[355592567,1741338646202,-500.0,9.582e-05,2]
[355592569,1741338646211,-694.89,9.582e-05,2]
[355592571,1741338646220,-1082.35,9.582e-05,2]
[355592573,1741338646231,-500.0,9.582e-05,2]
[355592575,1741338646240,-1213.23,9.582e-05,2]
[355592577,1741338646250,-237.32060798,9.582e-05,2]
[355592839,1741338669837,-200.0,8.375e-05,2]
[355593353,1741339142725,-300.0,8.374e-05,2]
[355593354,1741339264558,-300.0,8.374e-05,2]
[355593375,1741339831635,-595.67883046,8.2e-05,2]
[355593380,1741339832131,-310.39079079,8.2e-05,2]
[355593381,1741339832141,-1444.2,8.219e-05,2]
[355593382,1741339832151,-300.0,8.374e-05,2]
[355593383,1741339832160,-23900.0,8.375e-05,2]
[355593384,1741339832170,-151.0,8.375e-05,3]
[355593385,1741339832180,-159.0,8.375e-05,3]
[355593386,1741339832190,-2383.14595571,8.375e-05,2]
[355593387,1741339832199,-720.44294,8.6e-05,2]
[355593388,1741339832209,-2000.0,8.61e-05,2]
[355593389,1741339832218,-1000.0,8.64e-05,2]
[355593390,1741339832228,-164.4,8.673e-05,2]
[355593391,1741339832237,-487.24,8.692e-05,2]
[355593392,1741339832247,-500.0,8.698e-05,2]
[355593393,1741339832258,-240.85,8.698e-05,2]
[355593394,1741339832268,-250.0,8.754e-05,2]
[355593395,1741339832277,-344.81,8.768e-05,2]
[355593396,1741339832287,-300.0,8.768e-05,2]
[355593397,1741339832297,-300.0,9.1e-05,3]
[355593398,1741339832308,-910.19,9.1e-05,2]
[355593399,1741339832318,-600.0,9.2e-05,3]
[355593400,1741339832327,-420.0,9.211e-05,2]
[355593401,1741339832340,-550.0,9.211e-05,2]
[355593402,1741339832352,-550.0,9.212e-05,2]
[355593403,1741339832362,-900.0,9.3e-05,3]
[355593404,1741339832372,-1200.0,9.4e-05,3]
[355593405,1741339832381,-570.74162995,9.48e-05,2]
[355593406,1741339832391,-150.0,9.481e-05,2]
[355593407,1741339832400,-3033.8701,9.482e-05,2]
[355593408,1741339832409,-2875.9971,9.482e-05,2]
[355593409,1741339832419,-3751.1425,9.482e-05,2]
[355593411,1741339832428,-1937.7163,9.482e-05,2]
[355593413,1741339832438,-2500.0,9.485e-05,2]
[355593414,1741339832453,-4355.92364229,9.49e-05,2]
[355593416,1741339832468,-3142.342646,9.49e-05,2]
[355593418,1741339832482,-833.41,9.49e-05,2]
[355593420,1741339832493,-1500.0,9.5e-05,3]
[355593423,1741339832507,-150.0,9.58e-05,2]
[355593425,1741339832521,-510.61005768,9.581e-05,2]
[355593427,1741339832534,-500.0,9.581e-05,2]
[355593428,1741339832548,-500.0,9.581e-05,2]
[355593429,1741339832562,-500.0,9.581e-05,2]
[355593430,1741339832575,-500.0,9.581e-05,2]
[355593431,1741339832586,-500.0,9.582e-05,2]
[355593432,1741339832598,-500.0,9.582e-05,2]
[355593433,1741339832612,-500.0,9.582e-05,2]
[355593434,1741339832625,-500.0,9.582e-05,2]
[355593435,1741339832640,-500.0,9.582e-05,2]
[355593436,1741339832654,-248.48898504,9.582e-05,2]
[355593437,1741339832668,-505.09394784,9.582e-05,2]
[355593438,1741339832681,-500.0,9.582e-05,2]
[355593439,1741339832697,-500.0,9.582e-05,2]
[355593440,1741339832709,-174.662,9.582e-05,2]
[355593441,1741339832723,-2034.478,9.582e-05,2]
[355593442,1741339832735,-158.0,9.582e-05,3]
[355593443,1741339832749,-250000.0,9.585e-05,2]
[355593444,1741339832761,-151.0,9.585e-05,2]
[355593445,1741339832775,-21352.39704832,9.6e-05,2]
[355593446,1741339832788,-289.64074726,9.6e-05,2]
[355593447,1741339832802,-300.0,9.6e-05,3]
[355593448,1741339832812,-171.55,9.604e-05,2]
[355593449,1741339832823,-158.66,9.625e-05,2]
[355593450,1741339832836,-500.0,9.699e-05,2]
[355593451,1741339832852,-500.0,9.699e-05,2]
[355593452,1741339832863,-500.0,9.699e-05,2]
[355593453,1741339832873,-426.07993828,9.699e-05,2]
[355593454,1741339832885,-187402.90622791,9.7e-05,2]
[355593455,1741339832902,-2360.0,9.7e-05,2]
[355593456,1741339832917,-34917.72828856,9.7e-05,2]
[355593457,1741339832931,-31975.6957039,9.7e-05,2]
[355593458,1741339832948,-3614.97335,9.7e-05,2]
[355593459,1741339832982,-8557.62453274,9.7e-05,2]
[355593460,1741339832997,-2085.94825,9.7e-05,2]
[355593468,1741339837878,-35704.91403801,9.7e-05,2]
[355593469,1741339837890,-491.99999916,9.7e-05,2]
[355593470,1741339837901,-1334.995,9.7e-05,2]
[355593471,1741339837913,-1072.35,9.7e-05,2]
[355593472,1741339837942,-9260.05823244,9.7e-05,2]
[355593473,1741339837957,-17775.74994,9.7e-05,2]
[355593474,1741339837969,-1862.98345364,9.7e-05,2]
[355593475,1741339837981,-15386.72042693,9.7e-05,2]
[355593476,1741339837993,-9577.56619314,9.7e-05,2]
[355593478,1741339839621,-1203.2499875,9.7e-05,2]
[355593479,1741339839745,-12021.23963185,9.7e-05,2]
[355593480,1741339839757,-31066.22949518,9.7e-05,2]
[355593481,1741339839768,-47399.40008658,9.7e-05,2]
[355593482,1741339839971,-883.45000002,9.7e-05,2]
[355593590,1741339843751,-17138.32760273,9.7e-05,2]
[355593594,1741339845681,-857.82849578,9.7e-05,2]
[355593595,1741339845831,-6358.66397227,9.7e-05,2]
[355593596,1741339845843,-1049.99669866,9.7e-05,2]
[355593597,1741339845963,-1340.36438514,9.7e-05,2]
[355593598,1741339845972,-2801.69877069,9.7e-05,2]
[355593599,1741339845985,-698.54464993,9.7e-05,2]
[355593600,1741339845996,-461.83228381,9.7e-05,2]
[355593601,1741339919245,-184.27347396,8.275e-05,2]
[355593602,1741340481782,177.25,6.973e-05,2]
[355593616,1741341031926,-513.68550688,8.212e-05,2]
[355593617,1741341031978,-81.76809822,8.212e-05,2]
[355593618,1741341031989,-6753.40977187,8.212e-05,2]
[355593619,1741341032018,-16551.13662303,8.212e-05,2]
[355593620,1741341032027,-1538.36,8.219e-05,2]
[355593621,1741341032036,-293.8,8.232e-05,2]
[355593622,1741341032045,-150.0,8.247e-05,2]
[355593623,1741341032054,-1004.44,8.253e-05,2]
[355593624,1741341032063,-190.0,8.275e-05,3]
[355593625,1741341032072,-159.0,8.275e-05,3]
[355593626,1741341032081,-200.0,8.403e-05,2]
[355593627,1741341032091,-1000.0,8.547e-05,2]
[355593628,1741341032100,-10842.2978,8.592e-05,2]
[355593629,1741341032110,-184.2734,8.592e-05,2]
[355593630,1741341032119,-2000.0,8.656e-05,2]
[355593631,1741341032129,-150.0,8.658e-05,2]
[355593632,1741341032139,-150.0,8.691e-05,2]
[355593633,1741341032148,-250.0,8.692e-05,2]
[355593634,1741341032158,-503.65,8.692e-05,2]
[355593635,1741341032168,-979.83,8.692e-05,2]
[355593636,1741341032177,-1119.03,8.692e-05,2]
[355593637,1741341032187,-163.16,8.711e-05,2]
[355593638,1741341032196,-177.25,8.716e-05,2]
[355593639,1741341032205,-163.16,8.789e-05,2]
[355593640,1741341032215,-1545.73,8.802e-05,2]
[355593641,1741341032228,-163.16,8.866e-05,2]
[355593642,1741341032237,-163.16,8.944e-05,2]
[355593643,1741341032246,-163.16,9.021e-05,2]
[355593644,1741341032255,-150.0,9.041e-05,2]
[355593645,1741341032265,-150.0,9.041e-05,2]
[355593646,1741341032274,-163.16,9.099e-05,2]
[355593647,1741341032284,-550.0,9.102e-05,2]
[355593648,1741341032293,-163.16,9.176e-05,2]
[355593650,1741341032302,-163.16,9.253e-05,2]
[355593652,1741341032311,-163.16,9.331e-05,2]
[355593654,1741341032321,-163.16,9.408e-05,2]
[355593656,1741341032330,-15193.03928454,9.45e-05,2]
[355593660,1741341032357,-9126.7938641,9.45e-05,2]
[355593662,1741341032367,-6333.5961605,9.475e-05,2]
[355593664,1741341032389,-798.76112426,9.475e-05,2]
[355593666,1741341032426,-849.3640825,9.475e-05,2]
[355593667,1741341032437,-6106.02992642,9.475e-05,2]
[355593668,1741341032447,-8632.237,9.485e-05,2]
[355593669,1741341032455,-1627.582,9.5e-05,2]
[355593670,1741341032465,-5768.2661,9.51e-05,2]
[355593671,1741341032474,-1021.7276,9.51e-05,2]
[355593672,1741341032483,-1586.5208,9.51e-05,2]
[355593673,1741341032492,-255.0,9.561e-05,2]
[355593674,1741341032501,-150.0,9.562e-05,7]
[355593675,1741341032510,-3215.053,9.6e-05,2]
[355593676,1741341032519,-1017.0,9.6e-05,2]
[355593677,1741341032527,-47478.53790484,9.61e-05,2]
[355593678,1741341032537,-1000.0,9.616e-05,2]
[355593679,1741341032546,-41654.93883158,9.699e-05,2]
[355593681,1741341037683,-35059.44093286,9.699e-05,2]
[355593683,1741341037831,-1005.2085066,9.699e-05,2]
[355593684,1741341037842,-4468.6,9.699e-05,2]
[355593685,1741341037955,-8966.77322099,9.699e-05,2]
[355593689,1741341039922,-775.5981233,9.699e-05,2]
[355593690,1741341039974,-338.98300044,9.699e-05,2]
[355593691,1741341040088,-309.05,9.699e-05,2]
[355593692,1741341040100,-455.78372172,9.699e-05,2]
[355593696,1741341042875,-3554.4,9.699e-05,2]
[355593697,1741341042985,-2841.29997,9.699e-05,2]
[355593698,1741341042994,-3375.80792991,9.699e-05,2]
[355593699,1741341043003,-520.11335392,9.699e-05,2]
[355593707,1741341044129,-530.51616546,9.699e-05,2]
[355593708,1741341045751,-25788.64238562,9.699e-05,2]
[355593709,1741341045760,-6108.92429557,9.7e-05,2]
[355593710,1741341045769,-470.764001,9.7e-05,2]
[355593711,1741341045779,-470.764001,9.7e-05,2]
[355593712,1741341045788,-23363.11677239,9.7e-05,2]
[355593713,1741341045797,-13257.0067,9.7e-05,2]
[355593714,1741341045805,-1000.0,9.7e-05,2]
[355593715,1741341045814,-6787.588532,9.7e-05,2]
[355593716,1741341045823,-849.1376,9.7e-05,2]
[355593717,1741341045831,-12552.7972375,9.7e-05,2]
[355593718,1741341045839,-158.0,9.7e-05,3]
[355593719,1741341045848,-2032.0,9.734e-05,2]
[355593720,1741341045857,-1278.0,9.734e-05,2]
[355593721,1741341045866,-641.0,9.734e-05,2]
[355593722,1741341045874,-1459.0,9.734e-05,2]
[355593723,1741341045883,-150.0,9.734e-05,2]
[355593724,1741341045892,-571.0,9.734e-05,2]
[355593725,1741341045901,-787.0,9.734e-05,2]
[355593726,1741341045911,-541.0,9.734e-05,2]
[355593727,1741341045919,-63.31382142,9.734e-05,2]
[355593728,1741341045988,-1206.68617858,9.734e-05,2]
[355593729,1741341045996,-907.0,9.734e-05,2]
[355593730,1741341046004,-1428.0,9.734e-05,2]
[355593731,1741341046011,-4042.0,9.734e-05,2]
[355593732,1741341046017,-3931.0,9.734e-05,2]
[355593733,1741341046024,-1012.0,9.734e-05,2]
[355593734,1741341046030,-150.74,9.734e-05,2]
[355593735,1741341046039,-277.308,9.734e-05,2]
[355593736,1741341046048,-1113.0,9.734e-05,2]
[355593737,1741341046057,-622.28883848,9.734e-05,2]
[355593738,1741341046066,-200.0,9.751e-05,2]
[355593739,1741341046075,-200.10676563,9.751e-05,2]
[355593740,1741341046084,-165.883422,9.76e-05,2]
[355593741,1741341046094,-223.70758613,9.76e-05,2]
[355593742,1741341046103,-487.24,9.779e-05,2]
[355593743,1741341046112,-500.0,9.799e-05,2]
[355593744,1741341046121,-500.0,9.799e-05,2]
[355593745,1741341046130,-348.2559568,9.799e-05,2]
[355593746,1741341046353,-218.30993785,9.799e-05,2]
[355593747,1741341046363,-26953.627273,9.8e-05,2]
[355593748,1741341046372,-7627.31831695,9.8e-05,2]
[355593749,1741341046450,-717.1161356,9.8e-05,2]
[355593750,1741341046461,-2433.27603887,9.8e-05,2]
[355593751,1741341046484,-465.92409939,9.8e-05,2]
[355593752,1741341046494,-614.55497065,9.8e-05,2]
[355593753,1741341302899,1902.17220699,0.00020111,120]
[355593754,1741341353262,-1500.0,8.253e-05,2]
[355593755,1741341536402,177.25,7.132e-05,2]
[355593756,1741341615222,-1500.0,8.178e-05,2]
[355593757,1741341615257,-266.5795311,8.252e-05,2]
[355593758,1741341615311,-6466.8409378,8.253e-05,2]
[355593761,1741341847818,-1471.3,8.219e-05,2]
[355593762,1741341847839,-13528.7,8.253e-05,2]
[355593764,1741342027658,-153.75739698,8.252e-05,2]
[355593766,1741342231975,-153.757397,8.178e-05,2]
[355593767,1741342231984,-300.0,8.252e-05,2]
[355593768,1741342231994,-1660.57085729,8.253e-05,2]
[355593769,1741342232034,-1032.43087862,8.253e-05,2]
[355593770,1741342232047,-493.78059,8.253e-05,2]
[355593771,1741342232108,-5458.6877731,8.253e-05,2]
[355593772,1741342232120,-3094.05519288,8.253e-05,2]
[355593773,1741342232189,-1359.305881,8.253e-05,2]
[355593774,1741342232201,-2340.41788931,8.253e-05,2]
[355593775,1741342232212,-528.92,8.373e-05,2]
[355593776,1741342232222,-2255.29,8.373e-05,2]
[355593777,1741342232231,-1000.0,8.407e-05,2]
[355593778,1741342232241,-1059.11,8.425e-05,2]
[355593779,1741342232250,-1759.29294786,8.436e-05,2]
[355593780,1741342232262,-22140.70705214,8.436e-05,2]
[355593781,1741342232271,-20641.05210882,8.436e-05,2]
[355593782,1741342232280,-150.0,8.6e-05,2]
[355593783,1741342232290,-164.83,8.779e-05,2]
[355593784,1741342232299,-164.83,8.88e-05,2]
[355593785,1741342232308,-164.26,8.948e-05,2]
[355593786,1741342232317,-2000.0,8.967e-05,2]
[355593787,1741342232326,-164.83,8.98e-05,2]
[355593788,1741342232336,-850.77,8.98e-05,2]
[355593789,1741342232345,-250.0,9.032e-05,2]
[355593790,1741342232366,-330.36,9.032e-05,2]
[355593791,1741342232376,-299.99,9.032e-05,2]
[355593792,1741342232385,-150.99,9.032e-05,2]
[355593793,1741342232395,-336.82,9.063e-05,2]
[355593794,1741342232405,-420.0,9.077e-05,2]
[355593796,1741342232415,-150.0,9.077e-05,2]
[355593798,1741342232425,-150.0,9.078e-05,2]
[355593799,1741342232434,-164.83,9.08e-05,2]
[355593800,1741342232444,-163.0,9.145e-05,2]
[355593801,1741342232453,-150.0,9.145e-05,2]
[355593802,1741342232463,-150.0,9.145e-05,2]
[355593803,1741342232472,-150.0,9.145e-05,2]
[355593804,1741342232482,-164.83,9.181e-05,2]
[355593805,1741342232491,-164.83,9.281e-05,2]
[355593806,1741342232502,-168.31,9.329e-05,2]
[355593807,1741342232511,-164.83,9.381e-05,2]
[355593808,1741342232521,-528.92,9.42e-05,2]
[355593809,1741342232530,-1000.0,9.458e-05,2]
[355593810,1741342232540,-164.83,9.482e-05,2]
[355593811,1741342232549,-150.0,9.482e-05,2]
[355593812,1741342232559,-1000.0,9.56e-05,2]
[355593813,1741342232568,-1302.066,9.561e-05,2]
[355593814,1741342232578,-5530.88762561,9.58e-05,2]
[355593815,1741342232587,-1278.0,9.59e-05,2]
[355593816,1741342232597,-150.0,9.59e-05,2]
[355593817,1741342232606,-1459.0,9.59e-05,2]
[355593818,1741342232616,-641.0,9.59e-05,2]
[355593819,1741342232626,-571.0,9.59e-05,2]
[355593820,1741342232636,-244.40384152,9.59e-05,2]
[355593822,1741342232678,-541.59615848,9.59e-05,2]
[355593823,1741342232687,-362.23658242,9.59e-05,2]
[355593829,1741342237981,-3889.88,9.064e-05,2]
[355593830,1741342237991,-544.76341758,9.59e-05,2]
[355593831,1741342238001,-541.0,9.59e-05,2]
[355593832,1741342238013,-1270.0,9.59e-05,2]
[355593833,1741342238023,-45.69356275,9.59e-05,2]
[355593834,1741342238094,-1382.30643725,9.59e-05,2]
[355593835,1741342238104,-3272.70096275,9.59e-05,2]
[355593836,1741342238156,-769.29903725,9.59e-05,2]
[355593837,1741342238165,-227.18784498,9.59e-05,2]
[355593848,1741342240469,-200.0,9.044e-05,2]
[355593849,1741342240478,-784.81215502,9.59e-05,2]
[355593850,1741342240487,-2125.50734111,9.59e-05,2]
[355593851,1741342240506,-1805.49265889,9.59e-05,2]
[355593852,1741342240515,-150.0,9.59e-05,2]
[355593853,1741342240525,-1000.0,9.6e-05,2]
[355593854,1741342240534,-1005.2085,9.699e-05,2]
[355593855,1741342240544,-1000.0,9.699e-05,2]
[355593856,1741342240554,-1093.0485,9.7e-05,2]
[355593857,1741342240563,-842.7173,9.7e-05,2]
[355593858,1741342240572,-7859.7451,9.7e-05,2]
[355593859,1741342240581,-233.0,9.744e-05,2]
[355593860,1741342240591,-150.934,9.744e-05,2]
[355593861,1741342240600,-152.467,9.744e-05,2]
[355593862,1741342240610,-150.0,9.744e-05,2]
[355593863,1741342240619,-214.148,9.744e-05,2]
[355593864,1741342240628,-281.218,9.744e-05,2]
[355593865,1741342240638,-250.0,9.744e-05,2]
[355593866,1741342240647,-2032.0,9.744e-05,2]
[355593867,1741342240657,-500.0,9.773e-05,2]
[355593868,1741342240667,-160.26645466,9.773e-05,2]
[355593869,1741342240676,-160.30848655,9.773e-05,2]
[355593870,1741342240686,-160.39868411,9.773e-05,2]
[355593871,1741342240695,-501.63125407,9.773e-05,2]
[355593872,1741342240704,-160.26645467,9.773e-05,2]
[355593873,1741342240714,-151.16089529,9.773e-05,2]
[355593874,1741342240723,-500.24332938,9.773e-05,2]
[355593875,1741342240732,-159.10663921,9.773e-05,2]
[355593876,1741342240742,-160.26645654,9.773e-05,2]
[355593877,1741342240751,-7964.2372892,9.798e-05,2]
[355593889,1741342243093,-1113.0,9.723e-05,2]
[355593890,1741342243103,-3414.36590071,9.798e-05,2]
[355593902,1741342245995,-3885.10025319,9.798e-05,2]
[355593917,1741342246216,-347.39589058,9.798e-05,2]
[355593918,1741342246274,-2886.0,9.798e-05,2]
[355593919,1741342246336,-626.49162665,9.798e-05,2]
[355593924,1741342860599,-184.27505526,8.219e-05,2]
[355593929,1741343194129,-504.32260302,8.219e-05,2]
[355593930,1741343274763,-709.13234172,8.219e-05,2]
[355593931,1741343274788,-1000.0,8.446e-05,2]
[355593932,1741343274810,-300.0,8.478e-05,2]
[355593933,1741343274832,-5260.86765828,8.479e-05,2]
[355593934,1741343303898,376.29385448,7.888e-05,2]
[355593943,1741343432237,-18639.13234172,8.479e-05,2]
[355593944,1741343432247,-1594.0,8.479e-05,2]
[355593945,1741343432256,-164.64,8.496e-05,2]
[355593946,1741343432267,-2580.97429632,8.496e-05,2]
[355593947,1741343432277,-150.0,8.617e-05,2]
[355593948,1741343432286,-156.58,8.754e-05,2]
[355593949,1741343432296,-156.58,8.793e-05,2]
[355593950,1741343432306,-2000.0,8.806e-05,2]
[355593951,1741343432315,-1702.48,8.806e-05,2]
[355593952,1741343432325,-156.58,8.832e-05,2]
[355593953,1741343432334,-156.58,8.871e-05,2]
[355593954,1741343432344,-150.0,8.904e-05,2]
[355593955,1741343432354,-1500.0,8.905e-05,2]
[355593956,1741343432363,-941.38,8.905e-05,2]
[355593957,1741343432373,-156.58,8.91e-05,2]
[355593958,1741343432383,-293.8,8.91e-05,2]
[355593959,1741343432392,-250.0,8.936e-05,2]
[355593960,1741343432402,-156.58,8.949e-05,2]
[355593961,1741343432411,-739.2,8.967e-05,2]
[355593962,1741343432424,-7144.28,8.978e-05,2]
[355593963,1741343432433,-156.58,8.988e-05,2]
[355593964,1741343432442,-1063.89603874,9e-05,2]
[355593965,1741343432452,-156.58,9.026e-05,2]
[355593966,1741343432462,-156.58,9.065e-05,2]
[355593967,1741343432472,-156.58,9.104e-05,2]
[355593968,1741343432481,-326.55,9.114e-05,2]
[355593969,1741343432491,-156.58,9.143e-05,2]
[355593970,1741343432501,-156.58,9.182e-05,2]
[355593971,1741343432511,-156.58,9.221e-05,2]
[355593972,1741343432521,-156.58,9.26e-05,2]
[355593973,1741343432530,-156.58,9.299e-05,2]
[355593974,1741343432540,-150.0,9.327e-05,2]
[355593975,1741343432549,-156.58,9.338e-05,2]
[355593976,1741343432559,-156.58,9.377e-05,2]
[355593977,1741343432568,-156.58,9.416e-05,2]
[355593978,1741343432578,-150.0,9.454e-05,2]
[355593979,1741343432588,-156.58,9.454e-05,2]
[355593980,1741343432597,-150.0,9.465e-05,2]
[355593981,1741343432606,-150.0,9.474e-05,2]
[355593982,1741343432615,-150.0,9.493e-05,2]
[355593983,1741343432625,-150.0,9.494e-05,2]
[355593984,1741343432634,-150.0,9.497e-05,2]
[355593985,1741343432643,-1000.0,9.501e-05,2]
[355593986,1741343432652,-150.0,9.508e-05,2]
[355593987,1741343432662,-150.0,9.51e-05,2]
[355593988,1741343432671,-150.0,9.523e-05,2]
[355593989,1741343432681,-150.0,9.527e-05,2]
[355593990,1741343432690,-150.0,9.534e-05,2]
[355593991,1741343432699,-310.69340196,9.536e-05,2]
[355593992,1741343432709,-150.0,9.536e-05,2]
[355593993,1741343432719,-150.0,9.544e-05,2]
[355593995,1741343432729,-150.0,9.548e-05,2]
[355593997,1741343432738,-150.0,9.55e-05,2]
[355593999,1741343432748,-150.0,9.558e-05,2]
[355594000,1741343432757,-200.0,9.559e-05,2]
[355594001,1741343432773,-150.0,9.559e-05,2]
[355594002,1741343432783,-150.0,9.561e-05,2]
[355594003,1741343432792,-248.13904026,9.562e-05,2]
[355594004,1741343432802,-150.0,9.562e-05,2]
[355594005,1741343432812,-150.0,9.567e-05,2]
[355594007,1741343432821,-150.0,9.585e-05,2]
[355594009,1741343432831,-150.0,9.59e-05,2]
[355594011,1741343432840,-150.0,9.596e-05,2]
[355594013,1741343432849,-150.0,9.598e-05,2]
[355594015,1741343432858,-163.4313,9.6e-05,2]
[355594017,1741343432867,-150.0,9.601e-05,2]
[355594019,1741343432877,-150.0,9.61e-05,2]
[355594021,1741343432889,-723.25762245,9.624e-05,2]
[355594023,1741343432903,-150.0,9.625e-05,2]
[355594025,1741343432911,-150.0,9.63e-05,2]
[355594027,1741343432920,-150.0,9.643e-05,2]
[355594029,1741343432930,-1030.4538,9.644e-05,2]
[355594030,1741343432939,-150.0,9.646e-05,2]
[355594031,1741343432948,-150.0,9.647e-05,2]
[355594032,1741343432957,-150.0,9.647e-05,2]
[355594033,1741343432966,-150.0,9.648e-05,2]
[355594034,1741343432975,-150.0,9.652e-05,2]
[355594035,1741343432984,-150.0,9.661e-05,2]
[355594036,1741343432994,-150.0,9.664e-05,2]
[355594037,1741343433003,-150.0,9.668e-05,2]
[355594038,1741343433013,-150.0,9.669e-05,2]
[355594039,1741343433022,-150.0,9.672e-05,2]
[355594040,1741343433032,-1000.0,9.675e-05,2]
[355594041,1741343433041,-150.0,9.677e-05,2]
[355594042,1741343433051,-150.0,9.68e-05,2]
[355594043,1741343433061,-150.0,9.68e-05,2]
[355594044,1741343433072,-150.0,9.68e-05,2]
[355594045,1741343433081,-150.0,9.68e-05,2]
[355594046,1741343433091,-150.92562861,9.685e-05,2]
[355594047,1741343433101,-200.0,9.694e-05,2]
[355594048,1741343433111,-1000.0,9.697e-05,2]
[355594049,1741343433120,-150.0,9.698e-05,2]
[355594050,1741343433130,-3955.3951,9.698e-05,2]
[355594051,1741343433139,-2500.0,9.699e-05,2]
[355594052,1741343433149,-1527.428,9.699e-05,2]
[355594053,1741343433158,-203.847,9.699e-05,2]
[355594054,1741343433168,-150.0,9.699e-05,2]
[355594055,1741343433177,-28000.0,9.7e-05,2]
[355594056,1741343433187,-19095.2479,9.7e-05,2]
[355594057,1741343433197,-1000.0,9.7e-05,2]
[355594058,1741343433207,-150.0,9.701e-05,2]
[355594059,1741343433217,-4579.90248197,9.71e-05,2]
[355594060,1741343433226,-150.0,9.71e-05,2]
[355594061,1741343433236,-150.0,9.711e-05,2]
[355594062,1741343433246,-150.0,9.716e-05,2]
[355594063,1741343433255,-150.0,9.733e-05,2]
[355594064,1741343433266,-1459.0,9.744e-05,2]
[355594065,1741343433276,-150.0,9.744e-05,2]
[355594066,1741343433286,-641.0,9.744e-05,2]
[355594067,1741343433296,-571.0,9.744e-05,2]
[355594068,1741343433306,-786.0,9.744e-05,2]
[355594069,1741343433315,-1270.0,9.744e-05,2]
[355594070,1741343433325,-907.0,9.744e-05,2]
[355594071,1741343433335,-541.0,9.744e-05,2]
[355594072,1741343433344,-1428.0,9.744e-05,2]
[355594073,1741343433354,-4042.0,9.744e-05,2]
[355594074,1741343433363,-1113.0,9.744e-05,2]
[355594075,1741343433372,-150.0,9.744e-05,2]